[Event "4th Tata Steel India Rapid Women 2022"]
[Site "Kolkota"]
[Date "2022.12.01"]
[Round "9.2"]
[White "Harika, Dronavalli"]
[Black "Savitha Shri B"]
[Result "1-0"]
[ECO "E04"]
[WhiteElo "2507"]
[BlackElo "2411"]
[Annotator "TA"]
[PlyCount "60"]
[EventDate "2022.11.29"]
[EventType "tourn"]
[EventCountry "IND"]
[SourceTitle "playchess.com"]
[Source "ChessBase"]
[SourceQuality "1"]
[TimeControl "900+10"]

{[%evp 20,60,17,19,14,25,56,22,37,24,82,60,67,60,169,185,165,180,178,151,158,158,148,104,247,247,247,226,289,287,370,358,393,382,389,365,378,296,858,868,821,797,5306]} 1. Nf3 {[%emt 0:00:03]} Nf6 {[%emt 0:00:03]} 2. g3 {[%emt 0:00:02]} c5 {[%emt 0:00:01]} 3. Bg2 {[%emt 0:00:29]} d5 {[%emt 0:00:02]} 4. O-O {[%emt 0:00:06]} Nc6 {[%emt 0:00:01]} 5. d4 {[%emt 0:00:05]} e6 {[%emt 0:00:24]} 6. c4 {[%emt 0:00:24]} dxc4 {[%emt 0:01:15]} 7. dxc5 {[%emt 0:00:09]} Qxd1 {[%emt 0:00:07]} 8. Rxd1 {[%emt 0:00:02]} Bxc5 {[%emt 0:00:02]} 9. Nbd2 {[%emt 0:00:02]} c3 {[%emt 0:00:01]} 10. bxc3 {[%emt 0:00:01]} O-O {[%emt 0:00:43]} 11. Nb3 {[%emt 0:00:31]} Be7 {[%emt 0:01:32] E04: Open Catalan: 5 Nf3.} 12. c4 {[%emt 0:00:16]} Nd7 {[%emt 0:04:55] [#]} 13. Bb2 $146 {[%emt 0:05:20]} ({Predecessor:} 13. Be3 Ba3 14. Nfd4 Nxd4 15. Bxd4 a5 16. Rab1 Ra6 17. Rd3 Bb4 18. f4 Rd6 19. c5 {0-1 (36) Trois,F (2218)-Cunha,L (2287) Florianopolis 2017}) 13... Nb6 {[%emt 0:00:29] The position is equal.} 14. Rac1 {[%emt 0:00:17]} a5 {[%emt 0:01:58]} (14... Rd8 $11) 15. Nfd4 {[%emt 0:03:01] White is more active.} Bd7 {[%emt 0:03:07]} 16. c5 {[%emt 0:02:45] Prevents a4.} Na4 {[%emt 0:01:16]} ({Black should play} 16... Nd5 $14) 17. Ba1 $18 {[%emt 0:01:11][%cal Od4f5] And now Nf5! would win.} Rfd8 {[%emt 0:01:15] [#]} 18. Nxc6 $1 {[%emt 0:00:25]} Bxc6 {[%emt 0:00:01]} 19. Rxd8+ {[%emt 0:00:04]} Rxd8 {[%emt 0:00:02]} 20. Bxc6 {[%emt 0:00:10]} bxc6 {[%emt 0:00:04]} 21. Kg2 {[%emt 0:00:22] Hoping for Rc4.} ({Resist} 21. Nxa5 Ra8 22. Nxc6 Bxc5 $16) 21... Bf6 {[%emt 0:00:54] Loses the game.} (21... Rb8 $16 {keeps fighting.}) 22. Bxf6 {[%emt 0:00:21]} ({Much less strong is} 22. Nxa5 $6 Bxa1 23. Rxa1 Nxc5 $16) 22... gxf6 {[%emt 0:00:02]} 23. Nxa5 {[%emt 0:00:01][%mdl 4096] Endgame KRN-KRN} Rd2 {[%emt 0:00:28]} 24. Nxc6 {[%emt 0:00:18]} Rxa2 {[%emt 0:00:14]} 25. Nd4 {[%emt 0:00:21]} Kf8 {[%emt 0:00:07]} 26. c6 {[%emt 0:00:03][%cal Bc5c6,Bc6c7][%mdl 32]} Nb6 {[%emt 0:00:04]} 27. Rb1 {[%emt 0:00:16]} Nd5 {[%emt 0:00:18]} 28. e4 {[%emt 0:00:38]} Ne7 $2 {[%emt 0:00:13]} (28... Nc7 29. Rb7 Ra4) 29. Rb8+ {[%emt 0:00:28]} Kg7 {[%emt 0:00:01]} 30. c7 {[%emt 0:00:05] [#] Black must now prevent Re8.} Rd2 {[%emt 0:00:31] Weighted Error Value: White=0.10 (very precise) /Black=0.48} 1-0

[Event "4th Tata Steel India Rapid Women 2022"]
[Site "Kolkota"]
[Date "2022.12.01"]
[Round "9.3"]
[White "Kiolbasa, Oliwia"]
[Black "Koneru, Humpy"]
[Result "1-0"]
[ECO "C80"]
[WhiteElo "2406"]
[BlackElo "2574"]
[Annotator "TA"]
[PlyCount "105"]
[EventDate "2022.11.29"]
[EventType "tourn"]
[EventCountry "IND"]
[SourceTitle "playchess.com"]
[Source "ChessBase"]
[SourceQuality "1"]
[TimeControl "900+10"]

{[%evp 19,105,4,2,0,0,-17,-6,-47,-54,-47,-32,-47,-52,-52,0,0,0,-32,0,-39,0,-44,0,-24,-22,-26,0,0,0,0,0,0,79,74,195,189,208,202,213,214,238,252,282,229,495,495,597,575,616,603,1022,1011,996,666,1108,468,839,828,783,734,780,510,527,506,550,565,524,521,652,651,602,534,534,534,589,581,531,394,558,420,398,394,781,776,737,710,561,516]} 1. e4 {[%emt 0:00:03]} e5 {[%emt 0:00:02]} 2. Nf3 {[%emt 0:00:02]} Nc6 {[%emt 0:00:10]} 3. Bb5 {[%emt 0:00:04]} a6 {[%emt 0:00:22]} 4. Ba4 {[%emt 0:00:03]} Nf6 {[%emt 0:00:14]} 5. O-O {[%emt 0:00:04]} Nxe4 {[%emt 0:00:18]} 6. d4 {[%emt 0:00:04]} b5 {[%emt 0:00:03]} 7. Bb3 {[%emt 0:00:02]} d5 {[%emt 0:00:02]} 8. Nxe5 {[%emt 0:00:23]} Nxe5 {[%emt 0:00:28]} 9. dxe5 {[%emt 0:00:03]} c6 {[%emt 0:01:11]} 10. Be3 {[%emt 0:01:48]} Be7 {[%emt 0:04:25]} 11. c3 {[%emt 0:00:25] C80: Open Ruy Lopez: Sidelines and 9 Nbd2.} O-O {[%emt 0:00:13]} 12. Bc2 {[%emt 0:01:13]} f5 {[%emt 0:03:40][%cal Bf7f5,Bf5f4][%mdl 32]} 13. f3 {[%emt 0:00:10] [#] Prevents f4. The position is equal.} (13. exf6 {simplifies} Nxf6 14. h3 Be6 15. Bd4) 13... f4 $146 {[%emt 0:01:46]} ({Predecessor:} 13... Ng5 14. a4 f4 15. Bf2 Bf5 16. Nd2 Qd7 17. Nb3 Ne6 18. Bxf5 Rxf5 19. axb5 cxb5 20. Re1 Rff8 21. Qd2 Rfd8 22. Nd4 Bg5 23. h4 Bh6 24. Nf5 Kh8 25. Rad1 {1-0 (25) Ciocaltea,V-Scholl,E Wijk aan Zee 1969}) 14. Bd4 {[%emt 0:03:02]} Ng5 {[%emt 0:00:19]} 15. Nd2 {[%emt 0:01:39][%cal Bb1d2,Bd2b3,Bb3c1,Bc1e2,Be2c3][%mdl 32]} c5 {[%emt 0:00:10]} 16. Bf2 {[%emt 0:00:02]} Bf5 {[%emt 0:00:52]} (16... c4 $1 $15) 17. Nb3 $11 {[%emt 0:00:40]} Ne6 {[%emt 0:00:07]} 18. Re1 {[%emt 0:01:02]} Qd7 {[%emt 0:00:39]} 19. Qd2 {[%emt 0:00:44]} Rad8 {[%emt 0:00:24]} 20. a4 {[%emt 0:01:25]} bxa4 {[%emt 0:02:10]} 21. Nc1 {[%emt 0:00:02]} Bxc2 {[%emt 0:00:33]} 22. Qxc2 {[%emt 0:00:02]} d4 {[%emt 0:00:10] [#] Threatens to win with ...d3.} 23. cxd4 {[%emt 0:00:32]} Nxd4 {[%emt 0:00:12]} 24. Qc4+ {[%emt 0:00:21]} Qd5 {[%emt 0:00:12]} 25. Qxa4 {[%emt 0:01:20]} Ne6 {[%emt 0:00:13]} (25... Rf5 $11) 26. Ne2 $16 {[%emt 0:00:42]} ({But not} 26. Qxa6 $6 Ra8 27. Qd3 Qxd3 28. Nxd3 c4 29. Rxa8 Rxa8 $11) 26... c4 {[%emt 0:00:03] A mistake that costs the game.} (26... Rb8 $16 {keeps fighting.}) 27. Nc3 $18 {[%emt 0:00:07]} ({Don't take} 27. Qxa6 $6 Bc5 28. Nc3 Bxf2+ 29. Kxf2 Qd4+ 30. Kf1 Nc5 $14) 27... Qd7 {[%emt 0:00:23]} 28. Qxc4 {[%emt 0:00:25]} ({Don't play} 28. Qxa6 $6 Qc8 29. Ne4 Rd5) 28... Rc8 {[%emt 0:00:05]} 29. Qxa6 {[%emt 0:00:19]} Bc5 {[%emt 0:00:06]} 30. Bxc5 {[%emt 0:00:17]} Nxc5 {[%emt 0:00:03]} 31. Qc4+ {[%emt 0:00:13]} Kh8 $2 {[%emt 0:00:07]} (31... Ne6 32. Qe4 Qd2) 32. e6 {[%emt 0:00:28][%cal Be5e6,Be6e7][%mdl 32]} Qb7 {[%emt 0:00:32]} 33. Qb5 {[%emt 0:00:43]} Qe7 {[%emt 0:00:09]} 34. Nd5 {[%emt 0:00:47]} Qd6 {[%emt 0:00:02]} 35. e7 {[%emt 0:00:16]} Rfe8 {[%emt 0:00:01]} 36. Rad1 {[%emt 0:00:22] Strongly threatening Nb6.} Rb8 {[%emt 0:00:08] [#] Against Nb6} 37. Qe2 {[%emt 0:00:09]} (37. Nb6 $142 $1 {[%mdl 512]} Nd3 38. Rxd3) 37... Rb7 {[%emt 0:00:11]} (37... Nd7 $142 38. Qe6 Qxe6 39. Rxe6 Nf6) 38. b4 {[%emt 0:00:31]} Nd7 {[%emt 0:00:12]} 39. Qe4 {[%emt 0:00:10]} Ra7 {[%emt 0:00:21]} 40. Nxf4 {[%emt 0:00:27]} Qb6+ {[%emt 0:00:02]} 41. Qd4 {[%emt 0:00:01]} Kg8 {[%emt 0:00:14]} 42. Qxb6 {[%emt 0:00:25]} Nxb6 {[%emt 0:00:01]} 43. Rd6 {[%emt 0:00:06]} Nc8 {[%emt 0:00:18]} 44. Rd8 {[%emt 0:00:06]} Kf7 {[%emt 0:00:03]} 45. Rxe8 {[%emt 0:00:04]} Kxe8 {[%emt 0:00:02][%mdl 4096] Endgame KRN-KRN} 46. Nd5 {[%emt 0:00:01]} Rd7 {[%emt 0:00:19] Against b5} 47. Re5 {[%emt 0:00:31]} Nd6 {[%emt 0:00:01]} 48. Kf2 {[%emt 0:00:22]} h6 {[%emt 0:00:30]} (48... Nf7 {was called for.}) 49. Nf4 {[%emt 0:00:14]} Nc4 {[%emt 0:00:16]} 50. Re2 {[%emt 0:00:06]} g5 $2 {[%emt 0:00:10]} (50... Rxe7 51. Nh5 Rxe2+ 52. Kxe2 g6 53. Nf6+ Kf7) 51. Nh5 {[%emt 0:00:16] White wants to mate with Ng7+. White is clearly winning.} Rxe7 {[%emt 0:00:10]} 52. Ng7+ {[%emt 0:00:01]} Kf7 {[%emt 0:00:07]} 53. Rxe7+ {[%emt 0:00:01] Weighted Error Value: White=0.54/Black=0.44} 1-0

[Event "4th Tata Steel India Rapid Women 2022"]
[Site "Kolkota"]
[Date "2022.12.01"]
[Round "9.4"]
[White "Ushenina, Anna"]
[Black "Vaishali, Rameshbabu"]
[Result "1/2-1/2"]
[ECO "D85"]
[WhiteElo "2454"]
[BlackElo "2454"]
[Annotator "TA"]
[PlyCount "30"]
[EventDate "2022.11.29"]
[EventType "tourn"]
[EventCountry "IND"]
[SourceTitle "playchess.com"]
[Source "ChessBase"]
[SourceQuality "1"]
[TimeControl "900+10"]

{[%evp 9,30,28,54,56,34,3,32,18,20,24,35,17,22,25,52,44,47,47,43,45,45,43,47]} 1. d4 {[%emt 0:00:03]} Nf6 {[%emt 0:00:03][%cal Bg8f6,Bf6d5,Bd5b4,Bb4d3][%mdl 32]} 2. c4 {[%emt 0:00:07]} g6 {[%emt 0:00:03]} 3. Nc3 {[%emt 0:00:05]} d5 {[%emt 0:00:03]} 4. cxd5 {[%emt 0:00:02]} Nxd5 {[%emt 0:00:02]} 5. Bd2 {[%emt 0:00:06]} c5 {[%emt 0:00:31]} 6. dxc5 {[%emt 0:00:04] D85: Exchange Grünfeld: Unusual White 7th moves and lines with 7 Nf3.} Bg7 {[%emt 0:00:06]} 7. Qc1 {[%emt 0:00:09]} Nc6 {[%emt 0:00:11] [#]} 8. e4 $146 {[%emt 0:00:34]} ({Predecessor:} 8. Nf3 O-O 9. g3 Bf5 10. Bg2 Rc8 11. O-O b6 12. Rd1 Nxc3 13. Bxc3 Qc7 14. Bxg7 Kxg7 {1-0 (45) Manolache,M (2485)-Chen,Q (2485) Chess.com INT 2022}) 8... Ndb4 {[%emt 0:00:51]} 9. a3 {[%emt 0:00:32]} Nd3+ {[%emt 0:00:11]} 10. Bxd3 {[%emt 0:00:02]} Qxd3 {[%emt 0:00:03]} 11. Nge2 {[%emt 0:00:15]} Nd4 {[%emt 0:07:07] [#] White must now prevent ...Nc2+.} 12. Nxd4 {[%emt 0:04:55] White is slightly better.} Bxd4 {[%emt 0:00:02]} 13. Be3 {[%emt 0:01:31]} Bxc3+ {[%emt 0:02:27]} 14. Qxc3 {[%emt 0:00:04]} Qxc3+ {[%emt 0:00:04]} 15. bxc3 {[%emt 0:00:02]} Bd7 {[%emt 0:00:06] Weighted Error Value: White=0.05 (flawless) /Black=0.12 (very precise)} 1/2-1/2

[Event "4th Tata Steel India Rapid Women 2022"]
[Site "Kolkota"]
[Date "2022.12.01"]
[Round "9.5"]
[White "Dzagnidze, Nana"]
[Black "Muzychuk, Mariya"]
[Result "1/2-1/2"]
[ECO "D14"]
[WhiteElo "2517"]
[BlackElo "2528"]
[Annotator "TA"]
[PlyCount "82"]
[EventDate "2022.11.29"]
[EventType "tourn"]
[EventCountry "IND"]
[SourceTitle "playchess.com"]
[Source "ChessBase"]
[SourceQuality "1"]
[TimeControl "900+10"]

{[%evp 16,82,15,10,17,17,17,18,17,15,12,0,0,0,0,-7,0,-2,-12,-4,0,-9,16,-2,-3,-17,0,0,0,-10,-15,-9,-18,-99,0,0,0,0,0,0,0,0,0,0,0,0,0,0,0,0,0,0,0,0,0,0,0,0,0,0,0,0,0,0,0,0,0,0,0]} 1. Nf3 {[%emt 0:00:03]} d5 {[%emt 0:00:07]} 2. c4 {[%emt 0:00:08]} c6 {[%emt 0:00:10]} 3. d4 {[%emt 0:00:53]} Nf6 {[%emt 0:00:03]} 4. cxd5 {[%emt 0:00:06]} cxd5 {[%emt 0:00:07]} 5. Nc3 {[%emt 0:00:01]} Nc6 {[%emt 0:00:11]} 6. Bf4 {[%emt 0:00:02]} Bf5 {[%emt 0:00:18]} 7. Qb3 {[%emt 0:00:24]} Na5 {[%emt 0:00:32]} 8. Qa4+ {[%emt 0:00:02]} Bd7 {[%emt 0:00:01]} 9. Qc2 {[%emt 0:00:02]} e6 {[%emt 0:00:07] D14: Slav Defence: Exchange variation with ...Bf5.} 10. e3 {[%emt 0:00:04]} Rc8 {[%emt 0:00:06]} 11. Bd3 {[%emt 0:00:39]} Bb4 {[%emt 0:00:02][%cal Of6e4] seems to push 11...Be7 aside.} 12. O-O {[%emt 0:00:40]} Nh5 {[%emt 0:00:04]} 13. Be5 {[%emt 0:01:51]} ({Of course not} 13. Bxh7 Nxf4 14. exf4 Qf6 $15) 13... f6 {[%emt 0:00:05]} 14. Bg3 {[%emt 0:01:26]} Nxg3 {[%emt 0:00:05]} 15. hxg3 {[%emt 0:00:01]} Nc4 {[%emt 0:00:14][%cal Oc4b2]} 16. a3 {[%emt 0:00:18]} Bxc3 {[%emt 0:00:19]} 17. bxc3 {[%emt 0:00:02] [#]} Kf7 $146 {[%emt 0:01:16]} ({Predecessor:} 17... Nd6 18. a4 g6 19. Nd2 O-O 20. Rfc1 Qe7 21. Qb3 Rc7 22. Qa3 Rfc8 23. c4 dxc4 24. Rxc4 {½-½ (66) Nakamura,H (2736)-Caruana,F (2835) chess24.com INT 2020}) 18. Rfe1 {[%emt 0:00:21][%cal Bf1e1,Be1e5,Be5d5][%mdl 32]} (18. Bxh7 $2 {loses.} f5 19. Bxf5 exf5 20. Ne5+ Kg8 $19) 18... g6 {[%emt 0:00:20]} 19. g4 {[%emt 0:00:52]} Nd6 {[%emt 0:01:18]} 20. g5 {[%emt 0:00:25]} fxg5 {[%emt 0:02:32]} 21. e4 {[%emt 0:00:08]} Kg7 {[%emt 0:01:57]} 22. exd5 {[%emt 0:03:30]} exd5 {[%emt 0:00:01]} 23. Re5 {[%emt 0:00:03]} (23. Ne5 {simplifies} Bf5 24. Bxf5 gxf5 25. Nd3) 23... g4 {[%emt 0:00:49]} 24. Ng5 {[%emt 0:00:06] [#]} (24. Nh2 $1 $11) 24... Qf6 {[%emt 0:00:30]} (24... Re8 $1 $17 {...Qf6 is the strong threat.} 25. Qb3 Rxe5 26. dxe5 Qxg5 27. exd6 Qe5 28. Qxb7 Qxd6 29. Qxa7 Rxc3) 25. Rxd5 $11 {[%emt 0:00:40] The position is equal.} Rhe8 {[%emt 0:00:27] Strongly threatening ...Bc6.} (25... Bc6 $5 26. Re5 $8 Rhe8 $11) 26. Ne4 {[%emt 0:02:54]} Rxe4 {[%emt 0:00:50]} 27. Bxe4 {[%emt 0:00:19] Hoping for Re5.} Bc6 {[%emt 0:00:25] Threatens to win with ...Nxe4.} 28. Rxd6 {[%emt 0:00:37]} Qxd6 {[%emt 0:00:07]} 29. Bxc6 {[%emt 0:00:19]} Qxc6 {[%emt 0:02:00][%mdl 4096] Endgame KQR-KQR} 30. Rc1 {[%emt 0:00:57]} b5 {[%emt 0:00:10]} 31. Qd3 {[%emt 0:00:02]} a6 {[%emt 0:00:23]} 32. d5 {[%emt 0:00:29]} Qc4 {[%emt 0:00:49]} (32... Qc5 {keeps more tension.} 33. d6 Rf8 34. Rf1 Qf5) 33. Qd2 {[%emt 0:00:20]} Rc5 {[%emt 0:00:31]} 34. d6 {[%emt 0:00:48]} Rd5 {[%emt 0:00:39] Against d7} 35. Qe3 {[%emt 0:00:01]} (35. Qe1 {simplifies} Qf4 36. Rd1 Qxd6 37. Rxd5 Qxd5 38. Qe7+) 35... Qd3 {[%emt 0:00:10] [#] White must now prevent ...Qxe3.} 36. Qe7+ {[%emt 0:00:25]} Kh6 {[%emt 0:00:10]} 37. Qh4+ {[%emt 0:00:26]} Rh5 {[%emt 0:00:16]} 38. Qe7 {[%emt 0:00:07]} Rd5 {[%emt 0:00:20]} 39. Qh4+ {[%emt 0:00:49]} Rh5 {[%emt 0:00:04]} 40. Qf6 {[%emt 0:00:14]} Rf5 {[%emt 0:00:09]} 41. Qh4+ {[%emt 0:00:02]} Rh5 {[%emt 0:00:02] Weighted Error Value: White=0.04 (flawless) /Black=0.06 (flawless)} 1/2-1/2

[Event "4th Tata Steel India Rapid Women 2022"]
[Site "Kolkota"]
[Date "2022.12.01"]
[Round "10.1"]
[White "Dzagnidze, Nana"]
[Black "Ushenina, Anna"]
[Result "0-1"]
[ECO "D53"]
[WhiteElo "2517"]
[BlackElo "2454"]
[Annotator "TA"]
[PlyCount "74"]
[EventDate "2022.11.29"]
[EventType "tourn"]
[EventCountry "IND"]
[SourceTitle "playchess.com"]
[Source "ChessBase"]
[SourceQuality "1"]
[TimeControl "180+2"]

{[%evp 11,74,8,20,14,39,0,0,0,0,0,6,0,16,12,54,61,53,45,33,13,12,30,33,0,0,0,0,0,0,0,0,0,0,-9,-9,-73,-73,-73,-73,-73,-66,-74,-74,-74,-75,-87,-79,-150,-150,-345,-335,-313,-280,-674,-674,-674,-674,-671,-671,-671,-671,-656,-592,-558,-481]} 1. c4 {[%emt 0:00:00]} e6 {[%emt 0:00:00]} 2. Nf3 {[%emt 0:00:00]} d5 {[%emt 0:00:00]} 3. d4 {[%emt 0:00:00]} Nf6 {[%emt 0:00:00]} 4. Nc3 {[%emt 0:00:00]} Be7 {[%emt 0:00:00]} 5. Bg5 {[%emt 0:00:00]} h6 {[%emt 0:00:00]} 6. Bh4 {[%emt 0:00:00]} dxc4 {[%emt 0:00:00]} 7. e3 {[%emt 0:00:00] D53: Queen's Gambit Declined: 4 Bg5 Be7: Early deviations.} c5 {[%emt 0:00:00]} 8. dxc5 {[%emt 0:00:00]} Qxd1+ {[%emt 0:00:00]} 9. Rxd1 {[%emt 0:00:00] The position is equal.} Nbd7 {[%emt 0:00:00]} 10. Bxc4 {[%emt 0:00:16]} Nxc5 {[%emt 0:00:00]} 11. Ne5 {[%emt 0:00:03] [#]} g5 $146 {[%emt 0:00:00]} ({Predecessor:} 11... a6 12. Be2 Nfd7 13. Bxe7 Kxe7 14. Nc4 b6 15. Bf3 Ra7 16. b4 Nb7 17. a4 a5 {0-1 (59) Heberla,B (2562)-Svane,R (2637) Warsaw 2021}) 12. Bg3 {[%emt 0:00:01]} a6 {[%emt 0:00:00]} 13. Be2 {[%emt 0:00:16]} Nfe4 {[%emt 0:00:31]} 14. Nxe4 {[%emt 0:00:25]} Nxe4 {[%emt 0:00:00]} 15. Bf3 {[%emt 0:00:01]} Nxg3 {[%emt 0:00:33]} 16. hxg3 {[%emt 0:00:01]} Rb8 {[%emt 0:00:14]} 17. Ke2 {[%emt 0:00:21]} Bf6 {[%emt 0:00:17]} 18. Nc4 {[%emt 0:00:03]} Bd7 {[%emt 0:00:04]} 19. b3 {[%emt 0:00:55][%cal Of3b7]} Bb5 {[%emt 0:00:19]} 20. a4 {[%emt 0:00:04]} Bxc4+ {[%emt 0:00:05]} 21. bxc4 {[%emt 0:00:01]} Ke7 {[%emt 0:00:05]} 22. Rd3 {[%emt 0:00:20]} Rhc8 {[%emt 0:00:09]} 23. Rhd1 {[%emt 0:00:41]} (23. Rc1 $1 $11 {keeps the balance.}) 23... Rxc4 $17 {[%emt 0:00:12]} 24. Rd7+ {[%emt 0:00:02]} Kf8 {[%emt 0:00:00]} 25. a5 {[%emt 0:00:13]} Rc5 {[%emt 0:00:12]} 26. Rxb7 {[%emt 0:00:05]} Rxb7 {[%emt 0:00:04]} 27. Bxb7 {[%emt 0:00:00]} Rxa5 $15 {[%emt 0:00:00][%mdl 4096] Endgame KRB-KRB} 28. Rd7 {[%emt 0:00:06]} Ra2+ {[%emt 0:00:04]} 29. Kf1 {[%emt 0:00:02]} (29. Rd2 $142 Ra4 30. Bc8) 29... a5 $17 {[%emt 0:00:02][%cal Ba6a5,Ba5a4,Ba4a3,Ba3a2][%mdl 32]} 30. Bf3 $2 {[%emt 0:00:01] This move loses the game for White.} (30. Ba6 $17 {is a better defense.}) 30... a4 $19 {[%emt 0:00:03] [#] aiming for ...a3.} 31. Ra7 {[%emt 0:00:00]} a3 {[%emt 0:00:04] White must now prevent ...Be7.} 32. Bh5 $2 {[%emt 0:00:02]} (32. Ra8+ Kg7 33. Ra7) 32... Be7 {[%emt 0:00:00] Black is clearly winning.} 33. Ra8+ {[%emt 0:00:00]} Kg7 {[%emt 0:00:00]} 34. Ra7 {[%emt 0:00:00]} Kf6 {[%emt 0:00:10]} 35. Ke1 {[%emt 0:00:05]} Rb2 {[%emt 0:00:11]} 36. Bd1 {[%emt 0:00:05]} a2 {[%emt 0:00:04]} 37. Ra4 {[%emt 0:00:02]} Bb4+ {[%emt 0:00:07] Weighted Error Value: White=0.32/Black=0.08 (flawless)} 0-1

[Event "4th Tata Steel India Rapid Women 2022"]
[Site "Kolkota"]
[Date "2022.12.01"]
[Round "11.1"]
[White "Ushenina, Anna"]
[Black "Dzagnidze, Nana"]
[Result "1-0"]
[ECO "E52"]
[WhiteElo "2454"]
[BlackElo "2517"]
[Annotator "TA"]
[PlyCount "41"]
[EventDate "2022.11.29"]
[EventType "tourn"]
[EventCountry "IND"]
[SourceTitle "playchess.com"]
[Source "ChessBase"]
[SourceQuality "1"]
[TimeControl "180+2"]

{[%evp 17,41,-16,15,9,31,37,34,8,4,17,22,30,87,88,95,89,305,285,529,118,878,854,4978,2798,2508,2105]} 1. d4 {[%emt 0:00:00]} Nf6 {[%emt 0:00:00]} 2. c4 {[%emt 0:00:00]} e6 {[%emt 0:00:00]} 3. Nc3 {[%emt 0:00:00]} Bb4 {[%emt 0:00:00]} 4. e3 {[%emt 0:00:00]} O-O {[%emt 0:00:00]} 5. Bd2 {[%emt 0:00:00]} d5 {[%emt 0:00:00]} 6. Nf3 {[%emt 0:00:00]} b6 {[%emt 0:00:00]} 7. cxd5 {[%emt 0:00:00]} exd5 {[%emt 0:00:00]} 8. Bd3 {[%emt 0:00:00]} Bb7 {[%emt 0:00:00]} 9. O-O {[%emt 0:00:00]} a6 {[%emt 0:00:00]} 10. Ne5 {[%emt 0:00:00] E52: Nimzo-Indian: Rubinstein: 4...0-0 5 Nf3 d5 6 Bd3 b6.} Bd6 {[%emt 0:00:00]} 11. f4 {[%emt 0:00:00]} c5 {[%emt 0:00:16]} 12. Rc1 {[%emt 0:00:00] White is slightly better.} Nc6 {[%emt 0:00:14]} 13. Ng4 $1 {[%emt 0:00:13] next Nxf6+ is good for White. The main line 13.Ng4 scores better than 13.Be1.} Nxg4 {[%emt 0:00:25]} (13... Be7 {simplifies} 14. dxc5 bxc5 15. b3 c4) 14. Qxg4 {[%emt 0:00:03]} cxd4 {[%emt 0:00:08]} (14... c4 $11 15. Bb1 Nb4) 15. Nxd5 $16 {[%emt 0:00:18] [#]} Bc5 $146 {[%emt 0:00:47]} ({Predecessor:} 15... dxe3 16. Bc3 Be5 17. fxe5 Qxd5 18. Be4 Qe6 19. Qh4 h6 20. Rf6 Qe7 21. Rxh6 Qxh4 {1-0 (32) Bluebaum,M (2673)-Tregubov,P (2543) Chess.com INT 2022}) 16. Qh3 $40 {[%emt 0:00:50][%csl Gd3][%cal Rh3h7][%mdl 128] [#] White has strong attack. White has more active pieces. The black rooks are badly placed.} g6 $2 {[%emt 0:00:20]} (16... f5 $16 {keeps fighting.}) 17. e4 $18 {[%emt 0:00:06]} a5 $2 {[%emt 0:00:16]} (17... Kh8 {was called for.} 18. b4 Bd6) 18. Qh6 $2 {[%emt 0:00:46]} (18. f5 $18 {has better winning chances.} Kh8 19. Qh6) 18... Re8 $2 {[%emt 0:00:18][%mdl 8192] [#]} (18... f5 $16) 19. Rxc5 $1 {[%emt 0:00:24][%cal Of4f5][%mdl 512] Hoping for f5! White is clearly winning.} bxc5 {[%emt 0:00:02]} (19... Re6 20. Rcc1) 20. f5 {[%emt 0:00:23] Threatening mate with f6.} Re5 {[%emt 0:00:49]} 21. Bg5 {[%emt 0:00:11] Black got outplayed after the opening.   Weighted Error Value: White=0.72/Black=0.68} 1-0